[Event "VI Sunway Sitges Open 2019"]
[Site "Sitges"]
[Date "2019.12.13"]
[Round "1.28"]
[White "Peralta, Fernando"]
[Black "Martin Barcelo, Carles"]
[Result "1-0"]
[ECO "E90"]
[WhiteElo "2577"]
[BlackElo "2196"]
[Annotator "ChessBase"]
[PlyCount "89"]
[EventDate "2019.12.13"]
[EventType "swiss"]
[EventCountry "ESP"]
[SourceTitle "playchess.com"]
[Source "ChessBase"]
[SourceQuality "1"]
[TimeControl "40/5400+30:1800+30"]

1. d4 {[%emt 0:00:00]} Nf6 {[%emt 0:00:00]} 2. c4 {[%emt 0:00:00]} g6 {[%emt 0:00:00]} 3. Nc3 {[%emt 0:00:00]} Bg7 {[%emt 0:00:00]} 4. e4 {[%emt 0:00:06]} d6 {[%emt 0:00:03]} 5. Nf3 {[%emt 0:00:25]} O-O {[%emt 0:00:14]} 6. h3 {[%emt 0:02:16]} e5 {[%emt 0:00:40]} 7. d5 {[%emt 0:00:05]} Nh5 {[%emt 0:00:20]} 8. g3 {[%emt 0:00:28]} Na6 {[%emt 0:01:39]} 9. Be3 {[%emt 0:02:41]} f5 {[%emt 0:01:22]} 10. exf5 {[%emt 0:00:19]} gxf5 {[%emt 0:00:21]} 11. Qd2 {[%emt 0:01:22]} Qe7 {[%emt 0:14:34]} 12. O-O-O {[%emt 0:01:37]} Nf6 {[%emt 0:04:01]} 13. Nh4 {[%emt 0:07:40]} Nc5 {[%emt 0:20:50]} 14. Qc2 {[%emt 0:06:46]} e4 {[%emt 0:09:34]} 15. Nb5 {[%emt 0:07:56]} Ne8 {[%emt 0:08:14]} 16. Ng2 {[%emt 0:06:15]} c6 {[%emt 0:05:56]} 17. dxc6 {[%emt 0:11:35]} bxc6 {[%emt 0:01:17]} 18. Nxd6 {[%emt 0:00:28]} Nd3+ {[%emt 0:04:28]} 19. Bxd3 {[%emt 0:00:27]} Nxd6 {[%emt 0:04:50]} 20. Be2 {[%emt 0:00:39]} Rb8 {[%emt 0:01:44]} 21. Bd4 {[%emt 0:03:00]} Bxd4 {[%emt 0:00:58]} 22. Rxd4 {[%emt 0:00:07]} c5 {[%emt 0:00:09]} 23. Rdd1 {[%emt 0:02:41]} Be6 {[%emt 0:06:12]} 24. Nf4 {[%emt 0:03:27]} Rb4 {[%emt 0:02:03]} 25. b3 {[%emt 0:06:52]} a5 {[%emt 0:06:13]} 26. Qc3 {[%emt 0:00:54]} a4 {[%emt 0:02:27]} 27. Qe5 {[%emt 0:09:12]} axb3 {[%emt 0:01:50]} 28. axb3 {[%emt 0:13:47]} Nf7 {[%emt 0:02:11]} 29. Qxe6 {[%emt 0:06:36]} Qa7 {[%emt 0:00:04]} 30. Kd2 {[%emt 0:03:31]} Qa5 {[%emt 0:00:10]} 31. Ke3 {[%emt 0:00:14]} Rxb3+ {[%emt 0:00:48]} 32. Bd3 {[%emt 0:00:05]} exd3 {[%emt 0:01:02]} 33. Nd5 {[%emt 0:03:02]} d2+ {[%emt 0:00:59]} 34. Ke2 {[%emt 0:00:10]} Qd8 {[%emt 0:01:11]} 35. Rxd2 {[%emt 0:01:12]} Re8 {[%emt 0:00:32]} 36. Nf6+ {[%emt 0:00:23]} Qxf6 {[%emt 0:00:14]} 37. Qxe8+ {[%emt 0:00:04]} Kg7 {[%emt 0:00:03]} 38. Rhd1 {[%emt 0:00:53]} Rb6 {[%emt 0:01:07]} 39. Kf1 {[%emt 0:00:32]} Re6 {[%emt 0:00:16]} 40. Qb8 {[%emt 0:00:00]} Ne5 {[%emt 0:00:00]} 41. Rd6 {[%emt 0:07:35]} f4 {[%emt 0:06:07]} 42. Rxe6 {[%emt 0:01:53]} Qxe6 {[%emt 0:00:08]} 43. Qc7+ {[%emt 0:00:05]} Nf7 {[%emt 0:00:17]} 44. Qxf4 {[%emt 0:00:08]} Qxh3+ {[%emt 0:00:25]} 45. Kg1 {[%emt 0:00:05]} 1-0

[Event "VI Sunway Sitges Open 2019"]
[Site "Sitges"]
[Date "2019.12.13"]
[Round "1.30"]
[White "Dragnev, Valentin"]
[Black "Gallego Bergada, Antoni"]
[Result "1-0"]
[ECO "E81"]
[WhiteElo "2553"]
[BlackElo "2193"]
[Annotator "ChessBase"]
[PlyCount "41"]
[EventDate "2019.12.13"]
[EventType "swiss"]
[EventCountry "ESP"]
[SourceTitle "playchess.com"]
[Source "ChessBase"]
[SourceQuality "1"]
[TimeControl "40/5400+30:1800+30"]

1. d4 {[%emt 0:00:13]} g6 {[%emt 0:00:09]} 2. c4 {[%emt 0:00:35]} Bg7 {[%emt 0:00:06]} 3. e4 {[%emt 0:00:07]} d6 {[%emt 0:00:28]} 4. Nc3 {[%emt 0:00:20]} Nf6 {[%emt 0:00:28]} 5. f3 {[%emt 0:01:15]} O-O {[%emt 0:01:21]} 6. Be3 {[%emt 0:00:13]} c5 {[%emt 0:01:10]} 7. Nge2 {[%emt 0:00:09]} Nc6 {[%emt 0:00:31]} 8. d5 {[%emt 0:00:41]} Ne5 {[%emt 0:00:47]} 9. Ng3 {[%emt 0:00:07]} h5 {[%emt 0:06:06]} 10. Be2 {[%emt 0:00:14]} h4 {[%emt 0:00:49]} 11. Nf1 {[%emt 0:00:09]} e6 {[%emt 0:01:01]} 12. Bg5 {[%emt 0:00:27]} h3 {[%emt 0:14:04]} 13. Ne3 {[%emt 0:00:28]} exd5 {[%emt 0:05:29]} 14. Nexd5 {[%emt 0:07:49]} hxg2 {[%emt 0:12:47]} 15. Rg1 {[%emt 0:00:23]} Be6 {[%emt 0:02:51]} 16. Qd2 {[%emt 0:04:43]} Ned7 {[%emt 0:16:18]} 17. O-O-O {[%emt 0:07:17]} Qa5 {[%emt 0:07:37]} 18. Ne7+ {[%emt 0:10:00]} Kh7 {[%emt 0:00:42]} 19. Rxg2 {[%emt 0:01:18]} b5 {[%emt 0:05:07]} 20. cxb5 {[%emt 0:33:11]} Bxa2 {[%emt 0:01:27]} 21. Nc6 {[%emt 0:01:43]} 1-0

[Event "VI Sunway Sitges Open 2019"]
[Site "Sitges"]
[Date "2019.12.13"]
[Round "1.31"]
[White "Mohota, Nisha"]
[Black "Gukesh D"]
[Result "0-1"]
[ECO "B30"]
[WhiteElo "2191"]
[BlackElo "2547"]
[Annotator "ChessBase"]
[PlyCount "100"]
[EventDate "2019.12.13"]
[EventType "swiss"]
[EventCountry "ESP"]
[SourceTitle "playchess.com"]
[Source "ChessBase"]
[SourceQuality "1"]
[TimeControl "40/5400+30:1800+30"]

1. e4 {[%emt 0:00:00]} c5 {[%emt 0:00:29]} 2. Nf3 {[%emt 0:00:00]} Nc6 {[%emt 0:00:41]} 3. Bb5 {[%emt 0:00:00]} e6 {[%emt 0:04:08]} 4. O-O {[%emt 0:02:13]} Nge7 {[%emt 0:00:12]} 5. Re1 {[%emt 0:01:38]} Nd4 {[%emt 0:04:05]} 6. Bf1 {[%emt 0:04:00]} Nec6 {[%emt 0:02:59]} 7. c3 {[%emt 0:00:47]} Nxf3+ {[%emt 0:00:08]} 8. Qxf3 {[%emt 0:00:04]} g6 {[%emt 0:04:01]} 9. d3 {[%emt 0:04:25]} Bg7 {[%emt 0:00:09]} 10. Na3 {[%emt 0:00:10]} O-O {[%emt 0:00:29]} 11. Qg3 {[%emt 0:02:34]} d6 {[%emt 0:07:50]} 12. f4 {[%emt 0:04:11]} Rb8 {[%emt 0:06:36]} 13. e5 {[%emt 0:08:43]} b5 {[%emt 0:04:28]} 14. Be3 {[%emt 0:06:17]} Ne7 {[%emt 0:07:19]} 15. Qf2 {[%emt 0:03:59]} Nd5 {[%emt 0:16:12]} 16. Bd2 {[%emt 0:01:05]} dxe5 {[%emt 0:00:31]} 17. fxe5 {[%emt 0:00:47]} Qc7 {[%emt 0:04:19]} 18. c4 {[%emt 0:02:39]} bxc4 {[%emt 0:02:45]} 19. Nxc4 {[%emt 0:05:25]} Ba6 {[%emt 0:01:19]} 20. Rac1 {[%emt 0:02:28]} f6 {[%emt 0:08:37]} 21. Ba5 {[%emt 0:08:50]} Qe7 {[%emt 0:01:32]} 22. Qh4 {[%emt 0:03:31]} g5 {[%emt 0:01:52]} 23. exf6 {[%emt 0:04:19]} Bxf6 {[%emt 0:04:59]} 24. Qg4 {[%emt 0:03:21]} Nf4 {[%emt 0:05:05]} 25. Bc3 {[%emt 0:04:50]} Bxc3 {[%emt 0:03:34]} 26. bxc3 {[%emt 0:01:43]} h5 {[%emt 0:03:00]} 27. Qg3 {[%emt 0:02:16]} Bxc4 {[%emt 0:00:13]} 28. dxc4 {[%emt 0:02:41]} Rb2 {[%emt 0:01:36]} 29. Re5 {[%emt 0:03:27]} Rf5 {[%emt 0:02:03]} 30. Rxf5 {[%emt 0:07:08]} Rxg2+ {[%emt 0:00:35]} 31. Qxg2 {[%emt 0:06:08]} Nxg2 {[%emt 0:00:02]} 32. Re5 {[%emt 0:01:31]} Nf4 {[%emt 0:01:44]} 33. Rce1 {[%emt 0:00:39]} Kf7 {[%emt 0:01:18]} 34. Bg2 {[%emt 0:01:31]} Kf6 {[%emt 0:00:48]} 35. R5e3 {[%emt 0:00:58]} Qd6 {[%emt 0:00:41]} 36. a4 {[%emt 0:02:13]} Qd2 {[%emt 0:00:46]} 37. Bf1 {[%emt 0:00:36]} a5 {[%emt 0:00:15]} 38. Re4 {[%emt 0:00:58]} Qxc3 {[%emt 0:00:43]} 39. R1e3 {[%emt 0:00:15]} Qa1 {[%emt 0:00:52]} 40. h4 {[%emt 0:00:00]} Kf5 {[%emt 0:00:00]} 41. hxg5 {[%emt 0:02:18]} Kxg5 {[%emt 0:14:06]} 42. Kf2 Kf5 {[%emt 0:00:30]} 43. Re1 Qb2+ {[%emt 0:00:30]} 44. Kg1 h4 {[%emt 0:00:30]} 45. R4e3 Qd2 {[%emt 0:00:30]} 46. Re5+ Kf6 {[%emt 0:00:30]} 47. R5e4 h3 {[%emt 0:00:30]} 48. Kh1 Qf2 {[%emt 0:00:30]} 49. R4e3 h2 {[%emt 0:00:30]} 50. Bh3 e5 {[%emt 0:00:30]} 0-1

[Event "VI Sunway Sitges Open 2019"]
[Site "Sitges"]
[Date "2019.12.13"]
[Round "1.32"]
[White "Shevchenko, Kirill"]
[Black "Brodtkorb, Lars Johan"]
[Result "1-0"]
[ECO "B30"]
[WhiteElo "2547"]
[BlackElo "2191"]
[Annotator "ChessBase"]
[PlyCount "91"]
[EventDate "2019.12.13"]
[EventType "swiss"]
[EventCountry "ESP"]
[SourceTitle "playchess.com"]
[Source "ChessBase"]
[SourceQuality "1"]
[TimeControl "40/5400+30:1800+30"]

1. e4 {[%emt 0:00:00]} c5 {[%emt 0:02:15]} 2. Nf3 {[%emt 0:00:00]} Nc6 {[%emt 0:00:12]} 3. Nc3 {[%emt 0:00:17]} e5 {[%emt 0:01:36]} 4. Bc4 {[%emt 0:00:31]} Be7 {[%emt 0:00:20]} 5. d3 {[%emt 0:00:22]} d6 {[%emt 0:00:18]} 6. Nd2 {[%emt 0:01:19]} Nf6 {[%emt 0:03:54]} 7. Nf1 {[%emt 0:01:52]} O-O {[%emt 0:04:11]} 8. Ne3 {[%emt 0:01:26]} Nd7 {[%emt 0:04:13]} 9. h4 {[%emt 0:04:44]} Nb6 {[%emt 0:03:00]} 10. a4 {[%emt 0:01:52]} Be6 {[%emt 0:02:00]} 11. Ncd5 {[%emt 0:04:01]} Re8 {[%emt 0:07:04]} 12. Bd2 {[%emt 0:06:10]} Rb8 {[%emt 0:04:36]} 13. g3 {[%emt 0:15:54]} Bf8 {[%emt 0:07:37]} 14. h5 {[%emt 0:05:00]} h6 {[%emt 0:18:00]} 15. g4 {[%emt 0:08:13]} Be7 {[%emt 0:05:37]} 16. a5 {[%emt 0:04:52]} Nxc4 {[%emt 0:02:52]} 17. Nxe7+ {[%emt 0:03:28]} Qxe7 {[%emt 0:01:18]} 18. dxc4 {[%emt 0:00:15]} f6 {[%emt 0:02:05]} 19. Rg1 {[%emt 0:08:33]} b5 {[%emt 0:05:49]} 20. axb6 {[%emt 0:02:02]} axb6 {[%emt 0:01:05]} 21. Nd5 {[%emt 0:04:20]} Qb7 {[%emt 0:13:07]} 22. Bxh6 {[%emt 0:06:26]} gxh6 {[%emt 0:04:03]} 23. Nxf6+ {[%emt 0:00:06]} Kf7 {[%emt 0:01:59]} 24. Nxe8 {[%emt 0:00:46]} Rxe8 {[%emt 0:00:10]} 25. c3 {[%emt 0:05:13]} Rg8 {[%emt 0:03:49]} 26. g5 {[%emt 0:06:53]} Rxg5 {[%emt 0:01:11]} 27. Rxg5 {[%emt 0:01:14]} hxg5 {[%emt 0:00:01]} 28. h6 {[%emt 0:00:56]} Kg6 {[%emt 0:00:22]} 29. Qf3 {[%emt 0:04:34]} Na5 {[%emt 0:01:10]} 30. O-O-O {[%emt 0:00:53]} Nxc4 {[%emt 0:00:30]} 31. b3 {[%emt 0:00:43]} Na5 {[%emt 0:00:28]} 32. Rxd6 {[%emt 0:00:38]} Nxb3+ {[%emt 0:00:06]} 33. Kb2 {[%emt 0:00:23]} Qf7 {[%emt 0:00:56]} 34. Qxf7+ {[%emt 0:00:13]} Kxf7 {[%emt 0:00:02]} 35. Rxe6 {[%emt 0:00:49]} Nd2 {[%emt 0:00:02]} 36. Re7+ {[%emt 0:00:49]} Kg8 {[%emt 0:00:06]} 37. Rg7+ {[%emt 0:00:18]} Kh8 {[%emt 0:00:07]} 38. Rxg5 {[%emt 0:00:08]} Nxe4 {[%emt 0:00:14]} 39. Rxe5 {[%emt 0:00:03]} Nxf2 {[%emt 0:00:15]} 40. Re8+ {[%emt 0:00:00]} Kh7 {[%emt 0:00:00]} 41. Rb8 {[%emt 0:01:04]} Kxh6 {[%emt 0:02:44]} 42. Rxb6+ {[%emt 0:00:08]} Kg5 {[%emt 0:00:03]} 43. Kb3 {[%emt 0:00:33]} Kf5 {[%emt 0:00:09]} 44. Kc4 {[%emt 0:00:19]} Ne4 {[%emt 0:00:06]} 45. Rc6 {[%emt 0:00:46]} Ke5 {[%emt 0:00:31]} 46. Rxc5+ {[%emt 0:00:10]} 1-0

[Event "VI Sunway Sitges Open 2019"]
[Site "Sitges"]
[Date "2019.12.13"]
[Round "1.33"]
[White "Bartakke, Amardeep S."]
[Black "Nasuta, Grzegorz"]
[Result "0-1"]
[ECO "B50"]
[WhiteElo "2190"]
[BlackElo "2545"]
[Annotator "ChessBase"]
[PlyCount "100"]
[EventDate "2019.12.13"]
[EventType "swiss"]
[EventCountry "ESP"]
[SourceTitle "playchess.com"]
[Source "ChessBase"]
[SourceQuality "1"]
[TimeControl "40/5400+30:1800+30"]

1. e4 {[%emt 0:00:13]} c5 {[%emt 0:00:16]} 2. Nf3 {[%emt 0:00:21]} d6 {[%emt 0:00:06]} 3. c3 {[%emt 0:00:08]} Nf6 {[%emt 0:00:34]} 4. h3 {[%emt 0:00:05]} Nc6 {[%emt 0:00:23]} 5. Bd3 {[%emt 0:00:06]} d5 {[%emt 0:00:23]} 6. e5 {[%emt 0:00:00]} Nd7 {[%emt 0:00:00]} 7. Bb5 {[%emt 0:03:52]} Ndb8 {[%emt 0:00:53]} 8. d4 {[%emt 0:02:51]} cxd4 {[%emt 0:00:58]} 9. cxd4 {[%emt 0:04:12]} Bf5 {[%emt 0:00:05]} 10. Nc3 {[%emt 0:03:36]} e6 {[%emt 0:00:13]} 11. O-O {[%emt 0:00:46]} Be7 {[%emt 0:00:20]} 12. Be3 {[%emt 0:06:24]} O-O {[%emt 0:03:01]} 13. Qd2 {[%emt 0:04:40]} Nd7 {[%emt 0:08:50]} 14. Ne1 {[%emt 0:05:29]} Rc8 {[%emt 0:17:35]} 15. g4 {[%emt 0:03:39]} Bg6 {[%emt 0:00:55]} 16. f4 {[%emt 0:06:42]} f5 {[%emt 0:02:19]} 17. Bd3 {[%emt 0:08:56]} Nb6 {[%emt 0:20:32]} 18. b3 {[%emt 0:02:45]} Bb4 {[%emt 0:13:06]} 19. Rc1 {[%emt 0:01:29]} Qh4 {[%emt 0:01:51]} 20. gxf5 {[%emt 0:15:23]} Qg3+ {[%emt 0:02:40]} 21. Ng2 {[%emt 0:00:10]} Bxf5 {[%emt 0:00:05]} 22. Bxf5 {[%emt 0:01:35]} Rxf5 {[%emt 0:00:05]} 23. h4 {[%emt 0:00:46]} Ne7 {[%emt 0:04:22]} 24. Ne2 {[%emt 0:04:42]} Rxc1 {[%emt 0:10:54]} 25. Qxc1 {[%emt 0:05:57]} Qg4 {[%emt 0:00:05]} 26. Kf2 {[%emt 0:03:38]} Rf8 {[%emt 0:05:54]} 27. a3 {[%emt 0:01:56]} Rc8 {[%emt 0:00:04]} 28. Qb2 {[%emt 0:03:03]} Ba5 {[%emt 0:02:20]} 29. Rc1 {[%emt 0:00:50]} Nf5 {[%emt 0:01:41]} 30. b4 {[%emt 0:03:02]} Nc4 {[%emt 0:02:34]} 31. Rxc4 {[%emt 0:00:59]} Rxc4 {[%emt 0:00:38]} 32. bxa5 {[%emt 0:00:18]} h5 {[%emt 0:00:46]} 33. Bd2 {[%emt 0:04:49]} Nxh4 {[%emt 0:00:48]} 34. Nxh4 {[%emt 0:00:46]} Qxh4+ {[%emt 0:00:02]} 35. Ke3 {[%emt 0:00:21]} Qh3+ {[%emt 0:00:57]} 36. Kf2 {[%emt 0:00:05]} Qh2+ {[%emt 0:00:33]} 37. Kf3 {[%emt 0:00:37]} Qh1+ {[%emt 0:00:43]} 38. Kf2 {[%emt 0:00:10]} Qh4+ {[%emt 0:00:38]} 39. Ke3 {[%emt 0:00:00]} Qh3+ {[%emt 0:00:00]} 40. Kf2 {[%emt 0:00:00]} Qh2+ {[%emt 0:00:00]} 41. Ke3 {[%emt 0:03:06]} Qg2 {[%emt 0:07:54]} 42. Qxb7 {[%emt 0:08:11]} Rc2 {[%emt 0:06:30]} 43. Qb4 {[%emt 0:03:02]} a6 {[%emt 0:03:49]} 44. f5 {[%emt 0:07:23]} Qe4+ {[%emt 0:02:21]} 45. Kf2 {[%emt 0:00:04]} Qxf5+ {[%emt 0:00:05]} 46. Ke1 {[%emt 0:01:28]} h4 {[%emt 0:02:21]} 47. Qe7 {[%emt 0:05:52]} Qg4 {[%emt 0:01:48]} 48. Nf4 {[%emt 0:03:14]} Rxd2 {[%emt 0:04:19]} 49. Kxd2 {[%emt 0:01:57]} Qxf4+ {[%emt 0:00:02]} 50. Kc3 {[%emt 0:00:40]} Qg4 {[%emt 0:01:28]} 0-1

[Event "VI Sunway Sitges Open 2019"]
[Site "Sitges"]
[Date "2019.12.13"]
[Round "1.34"]
[White "Erigaisi Arjun"]
[Black "Pierecker, Markus"]
[Result "1-0"]
[ECO "C00"]
[WhiteElo "2544"]
[BlackElo "2189"]
[Annotator "ChessBase"]
[PlyCount "54"]
[EventDate "2019.12.13"]
[EventType "swiss"]
[EventCountry "ESP"]
[SourceTitle "playchess.com"]
[Source "ChessBase"]
[SourceQuality "1"]
[TimeControl "40/5400+30:1800+30"]

1. e4 {[%emt 0:00:39]} c5 {[%emt 0:00:00]} 2. Nf3 {[%emt 0:00:09]} e6 {[%emt 0:00:00]} 3. g3 {[%emt 0:01:50]} Nc6 {[%emt 0:01:26]} 4. Bg2 {[%emt 0:00:47]} Nf6 {[%emt 0:01:55]} 5. Qe2 {[%emt 0:01:13]} d6 {[%emt 0:03:17]} 6. O-O {[%emt 0:00:00]} Be7 {[%emt 0:01:20]} 7. Rd1 {[%emt 0:03:10]} O-O {[%emt 0:01:51]} 8. c3 {[%emt 0:29:01]} Bd7 {[%emt 0:10:11]} 9. Na3 {[%emt 0:08:34]} Rc8 {[%emt 0:01:28]} 10. d4 {[%emt 0:00:00]} cxd4 {[%emt 0:22:53]} 11. Nxd4 {[%emt 0:00:00]} Nxd4 {[%emt 0:00:35]} 12. Rxd4 {[%emt 0:07:22]} Qa5 {[%emt 0:02:26]} 13. Be3 {[%emt 0:00:00]} Bc6 {[%emt 0:10:43]} 14. Bd2 {[%emt 0:18:36]} d5 {[%emt 0:01:43]} 15. exd5 {[%emt 0:02:51]} Bxd5 {[%emt 0:05:28]} 16. Nc2 {[%emt 0:07:54]} Bxg2 {[%emt 0:09:58]} 17. Kxg2 {[%emt 0:02:11]} Rfd8 {[%emt 0:08:58]} 18. Be3 {[%emt 0:00:00]} Nd5 {[%emt 0:02:50]} 19. Rdd1 {[%emt 0:02:06]} Nxe3+ {[%emt 0:00:11]} 20. Nxe3 {[%emt 0:00:45]} Rxd1 {[%emt 0:00:00]} 21. Rxd1 {[%emt 0:10:57]} Qxa2 {[%emt 0:01:44]} 22. Rd7 {[%emt 0:01:32]} Bf6 {[%emt 0:01:21]} 23. Rxb7 {[%emt 0:02:06]} Bxc3 {[%emt 0:00:46]} 24. Qh5 {[%emt 0:00:33]} Bxb2 {[%emt 0:00:47]} 25. Qxf7+ {[%emt 0:00:00]} Kh8 {[%emt 0:05:49]} 26. Qd7 {[%emt 0:01:05]} Rf8 {[%emt 0:01:11]} 27. Qd2 {[%emt 0:00:00]} Re8 {[%emt 0:01:18]} 1-0

[Event "VI Sunway Sitges Open 2019"]
[Site "Sitges"]
[Date "2019.12.13"]
[Round "1.35"]
[White "Sibi Visal R"]
[Black "Li, Di"]
[Result "0-1"]
[ECO "D21"]
[WhiteElo "2185"]
[BlackElo "2543"]
[Annotator "RC"]
[PlyCount "202"]
[EventDate "2019.12.13"]
[EventType "swiss"]
[EventCountry "ESP"]
[SourceTitle "playchess.com"]
[Source "ChessBase"]
[SourceQuality "1"]
[TimeControl "40/5400+30:1800+30"]

1. c4 {[%emt 0:00:00]} e6 {[%emt 0:00:15]} 2. Nf3 {[%emt 0:00:00]} d5 {[%emt 0:00:11]} 3. d4 {[%emt 0:00:00]} dxc4 {[%emt 0:01:48]} 4. Nc3 {[%emt 0:00:16]} a6 {[%emt 0:01:20]} 5. a4 {[%emt 0:00:27]} Nc6 {[%emt 0:03:22]} 6. e3 {[%emt 0:05:49]} Na5 {[%emt 0:01:02]} 7. Nd2 {[%emt 0:01:19]} c5 {[%emt 0:00:53]} 8. Nxc4 {[%emt 0:01:37]} Nf6 {[%emt 0:01:15]} 9. dxc5 {[%emt 0:08:06]} Qxd1+ {[%emt 0:01:04]} 10. Kxd1 {[%emt 0:00:02]} Nb3 {[%emt 0:07:52]} 11. Rb1 {[%emt 0:04:01]} Bxc5 {[%emt 0:02:29]} 12. Kc2 {[%emt 0:05:09]} Nxc1 {[%emt 0:00:21]} 13. b4 {[%emt 0:00:14]} Ba7 {[%emt 0:02:17]} 14. Rxc1 {[%emt 0:00:41]} Ke7 {[%emt 0:04:42]} 15. Be2 {[%emt 0:02:01]} g5 {[%emt 0:05:39]} 16. Rhd1 {[%emt 0:02:50]} g4 {[%emt 0:02:55]} 17. Kb3 {[%emt 0:04:34]} h5 {[%emt 0:20:23]} 18. Nd6 {[%emt 0:04:11]} Rd8 {[%emt 0:02:14]} 19. Nce4 {[%emt 0:04:27]} Nd5 {[%emt 0:03:06]} 20. Bc4 {[%emt 0:03:54]} Rxd6 {[%emt 0:17:00]} 21. Nxd6 {[%emt 0:00:23]} Kxd6 {[%emt 0:00:06]} 22. e4 {[%emt 0:00:39]} Bd7 {[%emt 0:00:08]} 23. b5 {[%emt 0:05:46]} axb5 {[%emt 0:04:23]} 24. axb5 {[%emt 0:06:07]} Bb6 {[%emt 0:00:32]} 25. exd5 {[%emt 0:00:08]} e5 {[%emt 0:00:04]} 26. Be2 {[%emt 0:00:59]} Bc5 {[%emt 0:02:25]} 27. Ra1 {[%emt 0:02:53]} Rg8 {[%emt 0:00:33]} 28. Ra4 {[%emt 0:09:02]} f5 {[%emt 0:01:40]} 29. Rda1 {[%emt 0:02:21]} Bxf2 {[%emt 0:09:45]} 30. Ra8 {[%emt 0:00:02]} Rxa8 {[%emt 0:00:30]} 31. Rxa8 {[%emt 0:00:05]} Bg1 {[%emt 0:01:44]} 32. Rh8 {[%emt 0:01:17]} Bxh2 {[%emt 0:00:26]} 33. Kc4 {[%emt 0:00:15]} e4 {[%emt 0:01:22]} 34. Rh6+ {[%emt 0:00:18]} Ke7 {[%emt 0:01:50]} 35. Rxh5 {[%emt 0:00:26]} Bg1 {[%emt 0:00:29]} 36. Rh6 {[%emt 0:00:51]} Be3 {[%emt 0:01:19]} 37. Rh7+ {[%emt 0:08:09]} Kd6 {[%emt 0:00:05]} 38. Rg7 {[%emt 0:00:02]} b6 {[%emt 0:00:23]} 39. Rf7 {[%emt 0:14:13]} Bc5 {[%emt 0:00:57]} 40. Kc3 {[%emt 0:00:00]} Kc7 {[%emt 0:00:00]} 41. Bd1 {[%emt 0:05:05]} Kd8 {[%emt 0:01:00]} 42. Kc4 {[%emt 0:02:46]} Ke8 {[%emt 0:00:16]} 43. Rg7 {[%emt 0:00:18]} Kd8 {[%emt 0:07:20]} 44. Rf7 {[%emt 0:00:51]} Bd6 {[%emt 0:01:40]} 45. Be2 {[%emt 0:00:48]} Be5 {[%emt 0:01:38]} 46. Rh7 {[%emt 0:00:55]} Kc7 {[%emt 0:01:38]} 47. Rh6 {[%emt 0:01:49]} f4 {[%emt 0:05:23]} 48. d6+ {[%emt 0:02:19]} Bxd6 {[%emt 0:00:06]} 49. Kd5 {[%emt 0:00:02]} f3 {[%emt 0:00:52]} 50. gxf3 {[%emt 0:00:28]} Bf4 {[%emt 0:02:00]} 51. Rh7 {[%emt 0:05:47]} exf3 {[%emt 0:01:49]} 52. Bd3 {[%emt 0:00:10]} g3 {[%emt 0:09:34]} 53. Bf1 {[%emt 0:11:37]} g2 {[%emt 0:01:06]} 54. Bxg2 {[%emt 0:00:05]} fxg2 {[%emt 0:00:04]} 55. Rg7 {[%emt 0:00:03]} Be3 {[%emt 0:00:59]} 56. Rxg2 {[%emt 0:00:11]} Bxb5 {[%emt 0:00:06]} 57. Rg7+ {[%emt 0:00:02]} Bd7 {[%emt 0:00:44]} 58. Rh7 {[%emt 0:00:01]} Bc5 {[%emt 0:00:45]} 59. Rg7 {[%emt 0:00:31]} Be3 {[%emt 0:02:24]} 60. Rh7 {[%emt 0:00:19]} Bg5 {[%emt 0:00:13]} 61. Rg7 {[%emt 0:00:14]} Bd8 {[%emt 0:00:31]} 62. Rh7 {[%emt 0:00:22]} Kc8 {[%emt 0:00:20]} 63. Rh8 {[%emt 0:00:08]} Kc7 {[%emt 0:00:06]} 64. Rh7 {[%emt 0:00:02]} Bf6 {[%emt 0:00:11]} 65. Rf7 {[%emt 0:00:05]} Bb2 {[%emt 0:00:12]} 66. Rh7 {[%emt 0:00:10]} Ba3 {[%emt 0:00:21]} 67. Rg7 {[%emt 0:00:21]} Kd8 {[%emt 0:00:49]} 68. Rg8+ {[%emt 0:00:16]} Ke7 {[%emt 0:00:29]} 69. Rg7+ {[%emt 0:01:29]} Ke8 {[%emt 0:00:07]} 70. Rh7 {[%emt 0:00:14]} Be7 {[%emt 0:01:05]} 71. Rh8+ {[%emt 0:02:21]} Bf8 {[%emt 0:00:05]} 72. Rh7 {[%emt 0:00:23]} Kd8 {[%emt 0:01:19]} 73. Rh8 {[%emt 0:00:40]} Ke7 {[%emt 0:00:19]} 74. Rh7+ {[%emt 0:00:02]} Ke8 {[%emt 0:00:01]} 75. Rh8 {[%emt 0:00:43]} b5 {[%emt 0:00:41]} 76. Rh7 {[%emt 0:00:43]} Kd8 {[%emt 0:00:55]} 77. Rh8 {[%emt 0:01:43]} Ke7 {[%emt 0:00:05]} 78. Rh7+ {[%emt 0:00:03]} Ke8 {[%emt 0:00:01]} 79. Rh2 {[%emt 0:00:45]} Be7 {[%emt 0:01:19]} 80. Rh8+ {[%emt 0:00:45]} Kf7 {[%emt 0:00:05]} 81. Rh6 {[%emt 0:00:39]} Bg4 {[%emt 0:01:44]} 82. Rb6 {[%emt 0:00:40]} Be2 {[%emt 0:00:48]} 83. Kc6 {[%emt 0:01:07]} b4 {[%emt 0:00:17]} 84. Kd5 {[%emt 0:00:01]} Bf1 {[%emt 0:00:58]} 85. Ke5 {[%emt 0:00:07]} Bc4 {[%emt 0:00:41]} 86. Rb7 {[%emt 0:00:29]} Ke8 {[%emt 0:00:24]} 87. Kd4 {[%emt 0:01:56]} Be6 {[%emt 0:00:17]} 88. Ke5 {[%emt 0:00:07]} Bf7 {[%emt 0:00:21]} 89. Rb8+ {[%emt 0:00:34]} Kd7 {[%emt 0:00:05]} 90. Rb7+ {[%emt 0:00:01]} Kd8 {[%emt 0:00:08]} 91. Kd4 {[%emt 0:00:07]} Be6 {[%emt 0:01:16]} 92. Rb6 {[%emt 0:02:08]} Bb3 {[%emt 0:00:56]} 93. Rb7 {[%emt 0:00:32]} Bd6 {[%emt 0:00:09]} 94. Rh7 {[%emt 0:01:37]} Be6 {[%emt 0:00:33]} 95. Rb7 {[%emt 0:00:37]} Kc8 {[%emt 0:00:10]} 96. Rh7 {[%emt 0:00:08]} b3 {[%emt 0:01:05]} 97. Rh1 {[%emt 0:01:40]} Bb4 {[%emt 0:00:39]} 98. Kd3 {[%emt 0:02:04]} Kc7 {[%emt 0:00:22]} 99. Rh4 {[%emt 0:00:18]} Bf5+ {[%emt 0:00:36]} 100. Ke2 {[%emt 0:01:19]} Bd6 {[%emt 0:00:30]} 101. Rc4+ {[%emt 0:00:50]} Kd7 {[%emt 0:00:13]} 0-1